fUST/lending_fUST_20240607
["ID","MTS","AMOUNT","RATE_DAILY","PERIOD"]
[328680798,1717695040292,-710.98,0.00025478,2]
[328680800,1717695040302,-500.0,0.00025478,2]
[328680801,1717695040312,-621.82,0.00025478,2]
[328680803,1717695040323,-500.0,0.00025478,2]
[328680804,1717695040333,-500.0,0.00025478,2]
[328680805,1717695040343,-394.32265377,0.00025478,2]
[328680806,1717695040353,-500.0,0.00025478,2]
[328680807,1717695040363,-500.0,0.00025478,2]
[328680808,1717695040374,-500.0,0.00025478,2]
[328680809,1717695040384,-500.0,0.00025479,2]
[328680810,1717695040395,-1609.18,0.00025479,2]
[328680811,1717695040406,-500.0,0.00025479,2]
[328680812,1717695040416,-500.0,0.00025479,2]
[328680813,1717695040439,-500.0,0.00025479,2]
[328680814,1717695040452,-1634.46,0.00025479,2]
[328680815,1717695040462,-500.0,0.00025479,2]
[328680816,1717695040473,-500.0,0.00025479,2]
[328680817,1717695040483,-6195.51,0.00025479,2]
[328680818,1717695040495,-500.0,0.00025479,2]
[328680819,1717695040506,-500.0,0.00025479,2]
[328680820,1717695040517,-4001.99,0.00025479,2]
[328680821,1717695040528,-500.0,0.00025479,2]
[328680822,1717695040538,-1669.15,0.00025479,2]
[328680823,1717695040550,-576.78,0.00025479,2]
[328680824,1717695040561,-500.0,0.00025479,2]
[328680825,1717695040572,-4922.28,0.00025479,2]
[328680826,1717695040583,-500.0,0.00025479,2]
[328680827,1717695040593,-500.0,0.00025479,2]
[328680828,1717695040603,-500.0,0.00025479,2]
[328680829,1717695040614,-500.0,0.00025479,2]
[328680830,1717695040624,-614.89,0.00025479,2]
[328680831,1717695040635,-500.0,0.00025479,2]
[328680832,1717695040646,-374.86044992,0.00025479,2]
[328680833,1717695040656,-964.06,0.00025479,2]
[328680834,1717695040667,-4049.09,0.00025479,2]
[328680835,1717695040678,-595.71,0.00025479,2]
[328680836,1717695040688,-341.86218913,0.00025479,2]
[328680837,1717695040700,-500.0,0.00025479,2]
[328680838,1717695040712,-500.0,0.00025479,2]
[328680839,1717695040722,-500.0,0.00025479,2]
[328680840,1717695040733,-500.0,0.00025479,2]
[328680841,1717695040745,-1566.44,0.00025479,2]
[328680842,1717695040756,-865.93,0.00025479,2]
[328680843,1717695040768,-602.09,0.00025479,2]
[328680844,1717695040779,-1171.78,0.00025479,2]
[328680845,1717695040789,-4107.06423704,0.0002554,2]
[328680846,1717695040800,-897.86598448,0.00025718,2]
[328680847,1717695040812,-710.98,0.00025752,2]
[328680848,1717695040823,-500.0,0.00025752,2]
[328680849,1717695040834,-621.82,0.00025752,2]
[328680850,1717695040844,-500.0,0.00025752,2]
[328680851,1717695040855,-500.0,0.00025752,2]
[328680852,1717695040866,-500.0,0.00025752,2]
[328680853,1717695040877,-209.05998125,0.00025752,2]
[328680854,1717695040887,-500.0,0.00025752,2]
[328680855,1717695040897,-500.0,0.00025753,2]
[328680856,1717695040908,-1609.18,0.00025753,2]
[328680857,1717695040919,-516.31208858,0.00025753,2]
[328680858,1717695040929,-500.0,0.00025753,2]
[328680859,1717695040940,-500.0,0.00025753,2]
[328680860,1717695040952,-1634.46,0.00025753,2]
[328680861,1717695040962,-500.0,0.00025753,2]
[328680862,1717695040972,-500.0,0.00025753,2]
[328680863,1717695040982,-6195.51,0.00025753,2]
[328680864,1717695040993,-500.0,0.00025753,2]
[328680865,1717695041004,-500.0,0.00025753,2]
[328680866,1717695041014,-4001.99,0.00025753,2]
[328680867,1717695041024,-500.0,0.00025753,2]
[328680868,1717695041034,-1669.15,0.00025753,2]
[328680869,1717695041045,-576.78,0.00025753,2]
[328680870,1717695041056,-500.0,0.00025753,2]
[328680871,1717695041066,-4922.28,0.00025753,2]
[328680872,1717695041075,-500.0,0.00025753,2]
[328680873,1717695041085,-500.0,0.00025753,2]
[328680874,1717695041095,-500.0,0.00025753,2]
[328680875,1717695041105,-500.0,0.00025753,2]
[328680876,1717695041115,-614.89,0.00025753,2]
[328680877,1717695041125,-500.0,0.00025753,2]
[328680878,1717695041135,-964.06,0.00025753,2]
[328680879,1717695041145,-4049.09,0.00025753,2]
[328680880,1717695041155,-595.71,0.00025753,2]
[328680881,1717695041164,-594.79714923,0.00025753,2]
[328680882,1717695041174,-500.0,0.00025753,2]
[328680883,1717695041184,-500.0,0.00025753,2]
[328680884,1717695041198,-500.0,0.00025753,2]
[328680885,1717695041209,-1566.44,0.00025753,2]
[328680886,1717695041219,-865.93,0.00025753,2]
[328680887,1717695041228,-602.09,0.00025753,2]
[328680888,1717695041241,-1171.78,0.00025753,2]
[328680892,1717695041252,-3173.85372231,0.0002599,2]
[328680895,1717695041263,-457.38344898,0.0002599,2]
[328680897,1717695041274,-762.36283465,0.0002599,2]
[328680899,1717695041289,-13358.7770465,0.00025997,2]
[328680900,1717695041300,-1000.0,0.00026,26]
[328680901,1717695041311,-1007.77417647,0.00026,15]
[328680903,1717695041321,-1500.0,0.00026,2]
[328680904,1717695041332,-1500.0,0.00026,2]
[328680905,1717695041344,-1500.0,0.00026,2]
[328680906,1717695041355,-1500.0,0.00026,2]
[328680907,1717695041366,-1500.0,0.00026,2]
[328680908,1717695041376,-1348.8,0.00026,2]
[328680909,1717695041387,-1500.0,0.00026,2]
[328680910,1717695041398,-1500.0,0.00026,2]
[328680911,1717695041409,-1500.0,0.00026,2]
[328680912,1717695041420,-1500.0,0.00026,2]
[328680913,1717695041430,-1500.0,0.00026,2]
[328680914,1717695041440,-2731.18,0.00026,3]
[328680915,1717695041452,-2731.18,0.00026,3]
[328680916,1717695041462,-2731.18,0.00026,3]
[328680917,1717695041472,-2731.18,0.00026,3]
[328680918,1717695041484,-2731.18,0.00026,3]
[328680919,1717695041494,-2731.18,0.00026,3]
[328680920,1717695041504,-2289.08670325,0.00026,3]
[328681009,1717695047027,-500.0,0.00025478,2]
[328681011,1717695047037,-499.9933705,0.00025752,2]
[328681015,1717695047059,-0.0066295,0.00025752,2]
[328681017,1717695047070,-3702.79594333,0.0002599,3]
[328681019,1717695047082,-12740.04405667,0.0002599,3]
[328681021,1717695047092,-442.09329675,0.00026,3]
[328681023,1717695047101,-2731.18,0.00026,3]
[328681025,1717695047111,-2731.18,0.00026,3]
[328681027,1717695047120,-2731.18,0.00026,3]
[328681029,1717695047130,-2731.18,0.00026,3]
[328681031,1717695047139,-2731.18,0.00026,3]
[328681033,1717695047148,-1910.48348665,0.00026,3]
[328681181,1717695048567,-820.69651335,0.00026,3]
[328681183,1717695048576,-2731.18,0.00026,3]
[328681185,1717695048585,-2731.18,0.00026,3]
[328681187,1717695048594,-2731.18,0.00026,3]
[328681189,1717695048603,-2731.18,0.00026,3]
[328681191,1717695048613,-2480.69829765,0.00026,3]
[328681203,1717695048709,-500.0,0.00024657,2]
[328681205,1717695048720,-250.48170235,0.00026,3]
[328681207,1717695048730,-2731.18,0.00026,3]
[328681209,1717695048739,-2731.18,0.00026,3]
[328681211,1717695048748,-960.74638634,0.00026,2]
[328681292,1717695049499,-500.0,0.00024931,2]
[328681294,1717695049509,-500.0,0.00025205,2]
[328681296,1717695049518,-500.0,0.00025479,2]
[328681298,1717695049528,-500.0,0.00025753,2]
[328681300,1717695049537,-1732.81004656,0.00026,2]
[328681302,1717695049547,-2380.95029335,0.00026,2]
[328681304,1717695049559,-7080.744552,0.00026,2]
[328681306,1717695049571,-538.30515465,0.00026,2]
[328681309,1717695049581,-2557.21877666,0.00026,2]
[328681525,1717696039307,-293.58574107,0.00019313,2]
[328681526,1717696039330,-169.450643,0.00022038,2]
[328681527,1717696039355,-166.666666,0.00022349,2]
[328681528,1717696039375,-585.8590925,0.00022764,2]
[328681529,1717696039396,-6291.15037427,0.00023003,2]
[328681547,1717696151094,-183.38019346,0.00020903,2]
[328681585,1717696232198,-18598.8496257,0.0002285,2]
[328681586,1717696232210,-513.01590187,0.00023749,2]
[328681587,1717696232220,-15455.932095,0.0002383,2]
[328681588,1717696232229,-500.0,0.00023849,2]
[328681589,1717696232238,-500.0,0.00023849,2]
[328681590,1717696232247,-500.0,0.00023849,2]
[328681591,1717696232256,-500.0,0.00023849,2]
[328681592,1717696232266,-500.0,0.00023849,2]
[328681593,1717696232275,-523.9080619,0.00023849,2]
[328681594,1717696232285,-500.0,0.00023849,2]
[328681595,1717696232294,-500.0,0.00023849,2]
[328681596,1717696232304,-500.0,0.00023849,2]
[328681597,1717696232314,-500.0,0.00023849,2]
[328681598,1717696232323,-500.0,0.00023849,2]
[328681599,1717696232333,-500.0,0.00023849,2]
[328681600,1717696232342,-500.0,0.00023849,2]
[328681601,1717696232351,-500.0,0.00023849,2]
[328681602,1717696232360,-462.28447835,0.00023849,2]
[328681603,1717696232370,-500.0,0.00023849,2]
[328681604,1717696232379,-500.0,0.00023849,2]
[328681605,1717696232389,-500.0,0.00023849,2]
[328681606,1717696232398,-500.0,0.00023849,2]
[328681607,1717696232407,-500.0,0.00023849,2]
[328681608,1717696232417,-500.0,0.00023849,2]
[328681609,1717696232427,-500.0,0.00023849,2]
[328681610,1717696232437,-500.0,0.00023849,2]
[328681611,1717696232447,-546.22844784,0.00023849,2]
[328681612,1717696232456,-18354.33591821,0.0002385,2]
[328681613,1717696232466,-166.666666,0.00023873,2]
[328681614,1717696232475,-1628.1313824,0.00023937,2]
[328681615,1717696232484,-513.01590187,0.00024199,2]
[328681616,1717696232494,-504.197801,0.000244,2]
[328681617,1717696232503,-166.666666,0.00024493,2]
[328681618,1717696232513,-513.01590187,0.00024649,2]
[328681619,1717696232523,-333.23191971,0.00024656,2]
[328681620,1717696232533,-500.0,0.00024656,2]
[328681621,1717696232543,-375.39136886,0.00024656,2]
[328681622,1717696232552,-159.30330433,0.00024656,2]
[328681623,1717696232568,-589.82163756,0.00024656,2]
[328681624,1717696232578,-223.25993352,0.00024657,2]
[328681625,1717696232587,-500.0,0.00024657,2]
[328681626,1717696232597,-500.0,0.00024657,2]
[328681627,1717696232608,-500.0,0.00024657,2]
[328681628,1717696232618,-226.30217565,0.00024657,2]
[328681629,1717696232627,-500.0,0.00024657,2]
[328681630,1717696232637,-500.0,0.00024657,2]
[328681631,1717696232647,-500.0,0.00024657,2]
[328681632,1717696232656,-568.14,0.00024657,2]
[328681633,1717696232666,-500.0,0.00024657,2]
[328681634,1717696232675,-500.0,0.00024657,2]
[328681635,1717696232684,-500.0,0.00024657,2]
[328681636,1717696232694,-252.05008571,0.00024657,2]
[328681637,1717696232706,-247.94991429,0.00024657,2]
[328681638,1717696232716,-500.0,0.00024657,2]
[328681639,1717696232725,-500.0,0.00024657,2]
[328681640,1717696232908,-500.0,0.00024657,2]
[328681641,1717696232920,-500.0,0.00024657,2]
[328681642,1717696232930,-500.0,0.00024657,2]
[328681643,1717696232940,-500.0,0.00024657,2]
[328681644,1717696232949,-500.0,0.00024657,2]
[328681645,1717696232959,-500.0,0.00024657,2]
[328681646,1717696232968,-764.66,0.00024657,2]
[328681647,1717696232978,-500.0,0.00024657,2]
[328681648,1717696232988,-500.0,0.00024657,2]
[328681649,1717696232998,-650.54,0.00024657,2]
[328681650,1717696233007,-372.34142367,0.00024657,2]
[328681651,1717696233020,-127.65857633,0.00024657,2]
[328681652,1717696233029,-871.25,0.00024657,2]
[328681653,1717696233038,-0.72831806,0.00024657,2]
[328681668,1717696238077,-499.27168194,0.00024657,2]
[328681669,1717696238087,-500.0,0.00024657,2]
[328681670,1717696238097,-500.0,0.00024657,2]
[328681671,1717696238106,-500.0,0.00024657,2]
[328681672,1717696238116,-500.0,0.00024657,2]
[328681673,1717696238125,-500.0,0.00024657,2]
[328681674,1717696238134,-500.0,0.00024657,2]
[328681675,1717696238144,-500.0,0.00024657,2]
[328681676,1717696238153,-500.0,0.00024657,2]
[328681677,1717696238162,-500.0,0.00024657,2]
[328681678,1717696238171,-340.132321,0.00024657,2]
[328681679,1717696238180,-500.0,0.00024657,2]
[328681680,1717696238190,-761.16,0.00024657,2]
[328681681,1717696238199,-500.0,0.00024657,2]
[328681682,1717696238209,-500.0,0.00024657,2]
[328681683,1717696238218,-500.0,0.00024657,2]
[328681684,1717696238228,-969.33,0.00024657,2]
[328681685,1717696238237,-824.05,0.00024657,2]
[328681686,1717696238247,-1653.77,0.00024657,2]
[328681687,1717696238256,-200.0,0.00024657,2]
[328681688,1717696238265,-500.0,0.00024657,2]
[328681689,1717696238275,-529.71477471,0.00024657,2]
[328681690,1717696238284,-154.78,0.00024657,2]
[328681691,1717696238294,-500.0,0.00024657,2]
[328681692,1717696238303,-500.0,0.00024657,2]
[328681693,1717696238313,-500.0,0.00024657,2]
[328681694,1717696238322,-3754.17,0.00024657,2]
[328681695,1717696238331,-500.0,0.00024657,2]
[328681696,1717696238340,-614.13,0.00024657,2]
[328681697,1717696238349,-500.0,0.00024657,2]
[328681698,1717696238359,-1039.47,0.00024657,2]
[328681699,1717696238368,-500.0,0.00024657,2]
[328681700,1717696238377,-1350.09,0.00024657,2]
[328681701,1717696238386,-1273.93,0.00024657,2]
[328681702,1717696238396,-2772.5,0.00024657,2]
[328681703,1717696238405,-500.0,0.00024657,2]
[328681704,1717696238415,-509.11305332,0.00024657,2]
[328681705,1717696238424,-500.0,0.00024657,2]
[328681706,1717696238434,-500.0,0.00024657,2]
[328681707,1717696238444,-500.0,0.00024657,2]
[328681708,1717696238454,-1319.46,0.00024657,2]
[328681709,1717696238463,-500.0,0.00024657,2]
[328681710,1717696238472,-3450.99,0.00024657,2]
[328681711,1717696238482,-500.0,0.00024657,2]
[328681712,1717696238491,-500.0,0.00024657,2]
[328681713,1717696238500,-500.0,0.00024657,2]
[328681714,1717696238510,-500.0,0.00024657,2]
[328681715,1717696238519,-500.0,0.00024657,2]
[328681716,1717696238530,-4904.78,0.00024657,2]
[328681717,1717696238539,-1398.47,0.00024657,2]
[328681718,1717696238549,-500.0,0.00024657,2]
[328681719,1717696238559,-398.78615454,0.00024657,2]
[328681720,1717696238572,-654.98,0.00024657,2]
[328681721,1717696238582,-25.34827499,0.00024657,2]
[328681722,1717696238599,-474.65172501,0.00024657,2]
[328681723,1717696238610,-500.0,0.00024657,2]
[328681724,1717696238620,-2898.51054477,0.00024657,2]
[328681725,1717696238679,-537.44622922,0.00024657,2]
[328681727,1717696238691,-733.16322601,0.00024657,2]
[328681729,1717696238702,-500.0,0.00024657,2]
[328681730,1717696238712,-500.0,0.00024657,2]
[328681732,1717696238722,-185.538556,0.00024657,2]
[328681763,1717696242261,-314.461444,0.00024657,2]
[328681765,1717696242270,-500.0,0.00024657,2]
[328681766,1717696242281,-559.13985279,0.00024657,2]
[328681768,1717696242292,-266.58014721,0.00024657,2]
[328681769,1717696242302,-341.83068963,0.00024657,2]
[328681770,1717696242311,-500.0,0.00024657,2]
[328681771,1717696242321,-580.68,0.00024657,2]
[328681772,1717696242330,-500.0,0.00024657,2]
[328681773,1717696242340,-500.0,0.00024657,2]
[328681774,1717696242349,-528.46,0.00024657,2]
[328681775,1717696242358,-500.0,0.00024657,2]
[328681776,1717696242367,-504.56338697,0.00024657,2]
[328681777,1717696242377,-176.57,0.00024657,2]
[328681779,1717696242386,-3268.03,0.00024657,2]
[328681781,1717696242396,-500.0,0.00024657,2]
[328681782,1717696242405,-513.27,0.00024657,2]
[328681783,1717696242414,-500.0,0.00024657,2]
[328681784,1717696242424,-500.0,0.00024657,2]
[328681785,1717696242434,-1337.08,0.00024657,2]
[328681786,1717696242443,-500.0,0.00024657,2]
[328681787,1717696242453,-685.53,0.00024657,2]
[328681788,1717696242463,-500.0,0.00024657,2]
[328681789,1717696242472,-507.42660986,0.00024657,2]
[328681790,1717696242482,-755.53,0.00024657,2]
[328681791,1717696242491,-500.0,0.00024657,2]
[328681792,1717696242501,-500.0,0.00024657,2]
[328681793,1717696242510,-928.94,0.00024657,2]
[328681794,1717696242519,-500.0,0.0002493,2]
[328681795,1717696242529,-500.0,0.0002493,2]
[328681796,1717696242539,-164.12035405,0.0002493,2]
[328681797,1717696242548,-500.0,0.0002493,2]
[328681798,1717696242557,-500.0,0.0002493,2]
[328681799,1717696242571,-500.0,0.0002493,2]
[328681800,1717696242581,-500.0,0.0002493,2]
[328681801,1717696242590,-500.0,0.0002493,2]
[328681802,1717696242600,-500.0,0.0002493,2]
[328681803,1717696242611,-560.06,0.0002493,2]
[328681804,1717696242621,-527.35014866,0.0002493,2]
[328681805,1717696242630,-500.0,0.0002493,2]
[328681806,1717696242643,-500.0,0.0002493,2]
[328681807,1717696242654,-503.9662197,0.0002493,2]
[328681808,1717696242664,-500.0,0.0002493,2]
[328681809,1717696242674,-503.78967618,0.0002493,2]
[328681810,1717696242684,-500.0,0.0002493,2]
[328681811,1717696242694,-500.0,0.0002493,2]
[328681812,1717696242703,-500.0,0.0002493,2]
[328681813,1717696242713,-500.0,0.0002493,2]
[328681814,1717696242722,-500.0,0.0002493,2]
[328681815,1717696242732,-500.0,0.0002493,2]
[328681816,1717696242741,-500.0,0.0002493,2]
[328681817,1717696242751,-562.58,0.0002493,2]
[328681818,1717696242760,-500.0,0.0002493,2]
[328681819,1717696242770,-500.0,0.0002493,2]
[328681820,1717696242779,-500.0,0.0002493,2]
[328681821,1717696242788,-176.49226442,0.0002493,2]
[328681822,1717696242798,-500.0,0.0002493,2]
[328681825,1717696242807,-665.84,0.0002493,2]
[328681827,1717696242816,-500.0,0.0002493,2]
[328681828,1717696242825,-500.0,0.0002493,2]
[328681829,1717696242835,-500.0,0.0002493,2]
[328681830,1717696242844,-500.0,0.0002493,2]
[328681831,1717696242857,-500.0,0.0002493,2]
[328681832,1717696242866,-536.97547353,0.0002493,2]
[328681833,1717696242875,-500.0,0.0002493,2]
[328681834,1717696242884,-543.61720899,0.0002493,2]
[328681835,1717696242894,-537.67630589,0.0002493,2]
[328681836,1717696242903,-500.0,0.0002493,2]
[328681837,1717696242913,-500.0,0.0002493,2]
[328681839,1717696242922,-441.35054603,0.0002493,2]
[328681840,1717696242932,-500.0,0.0002493,2]
[328681842,1717696242941,-500.0,0.0002493,2]
[328681844,1717696242950,-519.12,0.0002493,2]
[328681845,1717696242959,-500.0,0.0002493,2]
[328681846,1717696242969,-523.02,0.0002493,2]
[328681847,1717696242978,-500.0,0.0002493,2]
[328681848,1717696242987,-500.0,0.0002493,2]
[328681849,1717696242996,-501.47325796,0.00024931,2]
[328681850,1717696243006,-500.0,0.00024931,2]
[328681851,1717696243015,-500.0,0.00024931,2]
[328681852,1717696243025,-500.0,0.00024931,2]
[328681853,1717696243038,-500.0,0.00024931,2]
[328681854,1717696243048,-568.14,0.00024931,2]
[328681855,1717696243058,-312.66360045,0.00024931,2]
[328681856,1717696243067,-500.0,0.00024931,2]
[328681857,1717696243076,-500.0,0.00024931,2]
[328681858,1717696243086,-500.0,0.00024931,2]
[328681859,1717696243095,-500.0,0.00024931,2]
[328681860,1717696243104,-500.0,0.00024931,2]
[328681861,1717696243114,-500.0,0.00024931,2]
[328681862,1717696243123,-638.47232009,0.00024931,2]
[328681863,1717696243133,-500.0,0.00024931,2]
[328681864,1717696243143,-500.0,0.00024931,2]
[328681865,1717696243151,-500.0,0.00024931,2]
[328681866,1717696243161,-764.66,0.00024931,2]
[328681867,1717696243170,-486.2441732,0.00024931,2]
[328681868,1717696243183,-13.7558268,0.00024931,2]
[328681869,1717696243193,-176.44907158,0.00024931,2]
[328681870,1717696243202,-650.54,0.00024931,2]
[328681871,1717696243212,-500.0,0.00024931,2]
[328681872,1717696243221,-871.25,0.00024931,2]
[328681873,1717696243231,-500.0,0.00024931,2]
[328681874,1717696243240,-500.0,0.00024931,2]
[328681875,1717696243250,-500.0,0.00024931,2]
[328681876,1717696243259,-500.0,0.00024931,2]
[328681877,1717696243268,-500.0,0.00024931,2]
[328681878,1717696243280,-626.10224753,0.00024931,2]
[328681879,1717696243290,-540.90027872,0.00024931,2]
[328681880,1717696243300,-500.0,0.00024931,2]
[328681881,1717696243309,-500.0,0.00024931,2]
[328681882,1717696243318,-510.86191059,0.00024931,2]
[328681883,1717696243328,-761.16,0.00024931,2]
[328681884,1717696243338,-500.0,0.00024931,2]
[328681885,1717696243347,-500.0,0.00024931,2]
[328681886,1717696243356,-500.0,0.00024931,2]
[328681887,1717696243365,-824.05,0.00024931,2]
[328681888,1717696243374,-1653.77,0.00024931,2]
[328681889,1717696243384,-200.0,0.00024931,2]
[328681890,1717696243393,-500.0,0.00024931,2]
[328681891,1717696243403,-480.36358429,0.00024931,2]
[328681892,1717696243412,-3754.17,0.00024931,2]
[328681893,1717696243422,-500.0,0.00024931,2]
[328681894,1717696243431,-500.0,0.00024931,2]
[328681895,1717696243441,-614.13,0.00024931,2]
[328681896,1717696243450,-500.0,0.00024931,2]
[328681897,1717696243460,-1039.47,0.00024931,2]
[328681898,1717696243469,-500.0,0.00024931,2]
[328681899,1717696243478,-1350.09,0.00024931,2]
[328681900,1717696243487,-2772.5,0.00024931,2]
[328681901,1717696243496,-1273.93,0.00024931,2]
[328681902,1717696243506,-500.0,0.00024931,2]
[328681904,1717696243515,-500.0,0.00024931,2]
[328681906,1717696243524,-500.0,0.00024931,2]
[328681907,1717696243536,-500.0,0.00024931,2]
[328681908,1717696243546,-1319.46,0.00024931,2]
[328681909,1717696243555,-500.0,0.00024931,2]
[328681910,1717696243571,-1355.72532408,0.00024931,2]
[328681912,1717696243681,-1659.00762484,0.00024931,2]
[328681913,1717696243694,-436.25705108,0.00024931,2]
[328681914,1717696243703,-500.0,0.00024931,2]
[328681915,1717696243713,-500.0,0.00024931,2]
[328681916,1717696243723,-500.0,0.00024931,2]
[328681917,1717696243733,-500.0,0.00024931,2]
[328681918,1717696243743,-500.0,0.00024931,2]
[328681919,1717696243753,-4904.78,0.00024931,2]
[328681920,1717696243763,-1398.47,0.00024931,2]
[328681921,1717696243772,-500.0,0.00024931,2]
[328681922,1717696243784,-654.98,0.00024931,2]
[328681923,1717696243794,-500.0,0.00024931,2]
[328681924,1717696243803,-500.0,0.00024931,2]
[328681926,1717696243812,-2841.11294892,0.00024931,2]
[328681928,1717696243825,-1328.00705108,0.00024931,2]
[328681929,1717696243836,-500.0,0.00024931,2]
[328681930,1717696243846,-500.0,0.00024931,2]
[328681931,1717696243856,-500.0,0.00024931,2]
[328681932,1717696243866,-825.72,0.00024931,2]
[328681933,1717696243875,-500.0,0.00024931,2]
[328681934,1717696243885,-580.68,0.00024931,2]
[328681935,1717696243895,-500.0,0.00024931,2]
[328681936,1717696243906,-500.0,0.00024931,2]
[328681937,1717696243916,-528.46,0.00024931,2]
[328681938,1717696243926,-500.0,0.00024931,2]
[328681940,1717696244072,-1416.90877401,0.00024931,2]
[328681941,1717696244229,-500.0,0.00024657,2]
[328681942,1717696244238,-1851.12122599,0.00024931,2]
[328681943,1717696244247,-500.0,0.00024931,2]
[328681944,1717696244256,-513.27,0.00024931,2]
[328681945,1717696244265,-500.0,0.00024931,2]
[328681946,1717696244274,-500.0,0.00024931,2]
[328681947,1717696244285,-1337.08,0.00024931,2]
[328681948,1717696244294,-160.2908653,0.00024931,2]
[328681949,1717696244303,-685.53,0.00024931,2]
[328681950,1717696244312,-500.0,0.00024931,2]
[328681951,1717696244321,-755.53,0.00024931,2]
[328681952,1717696244330,-500.0,0.00024931,2]
[328681953,1717696244339,-928.94,0.00024931,2]
[328681954,1717696244348,-635.31298497,0.00024983,2]
[328681955,1717696244357,-401.88954213,0.00025,2]
[328681956,1717696244366,-513.01590187,0.00025099,2]
[328681957,1717696244375,-500.0,0.00025204,2]
[328681958,1717696244384,-500.0,0.00025204,2]
[328681959,1717696244393,-500.0,0.00025204,2]
[328681960,1717696244402,-560.06,0.00025204,2]
[328681961,1717696244411,-500.0,0.00025204,2]
[328681962,1717696244420,-500.0,0.00025204,2]
[328681963,1717696244429,-500.0,0.00025204,2]
[328681964,1717696244439,-500.0,0.00025204,2]
[328681965,1717696244448,-500.0,0.00025204,2]
[328681966,1717696244458,-500.0,0.00025204,2]
[328681967,1717696244467,-199.40510704,0.00025204,2]
[328681968,1717696244477,-504.70911292,0.00025204,2]
[328681969,1717696244486,-500.0,0.00025204,2]
[328681970,1717696244495,-500.0,0.00025204,2]
[328681971,1717696244504,-562.58,0.00025204,2]
[328681972,1717696244513,-500.0,0.00025204,2]
[328681973,1717696244523,-500.0,0.00025204,2]
[328681974,1717696244532,-500.0,0.00025204,2]
[328681975,1717696244541,-357.16526004,0.00025204,2]
[328682005,1717696246293,-525.4495035,0.00025194,3]
[328682006,1717696258816,158.96879947,9.999e-05,2]
[328682007,1717696294154,102.79217247,9.999e-05,2]
[328682008,1717696294173,122.36331276,9.999e-05,2]
[328682009,1717696296478,60.79617578,0.00015,2]
[328682010,1717696296506,1629.03376055,0.00015,2]
[328682011,1717696297363,156.94160073,9.999e-05,2]
[328682012,1717696302325,524.11356144,9.999e-05,2]
[328682013,1717696318251,154.93802479,9.999e-05,2]
[328682014,1717696319759,154.93802479,9.999e-05,2]
[328682015,1717696328032,759.55453663,9.999e-05,2]
[328682016,1717696329983,774.09027042,9.999e-05,2]
[328682017,1717696365513,1673.96605746,9.999e-05,2]
[328682018,1717696382815,378.10698822,9.999e-05,2]
[328682032,1717697088760,154.93802479,9.999e-05,2]
[328682063,1717697299148,172.25346231,0.000189,2]
[328682067,1717697357117,-228.911002,0.00022099,2]
[328682068,1717697367223,-545.17926842,0.00022099,2]
[328682072,1717697419218,264.19243309,0.000221,2]
[328682100,1717697434549,-360.07283339,0.000221,2]
[328682102,1717697434559,-161.12889,0.00022663,2]